[Event "DFMMLV 2024"]
[Site "Braunfels"]
[Date "2024.06.01"]
[Round "4.10"]
[White "Peglau, Dora"]
[Black "Hund, Sarah"]
[Result "1-0"]
[ECO "D37"]
[WhiteElo "2002"]
[BlackElo "1991"]
[Annotator "NA RC"]
[PlyCount "111"]
[EventDate "2024.05.30"]
[EventType "team-tourn"]
[EventCountry "GER"]
[SourceTitle "playchess.com"]
[Source "ChessBase"]
[SourceQuality "1"]
[TimeControl "40/5400+30:1800+30"]

1. d4 {[%emt 0:00:05]} d5 {[%emt 0:00:09]} 2. c4 {[%emt 0:00:06]} e6 {[%emt 0:00:10]} 3. Nc3 {[%emt 0:00:14]} Be7 {[%emt 0:00:13]} 4. Nf3 {[%emt 0:00:16]} Nf6 {[%emt 0:00:12]} 5. Bf4 {[%emt 0:00:31]} O-O {[%emt 0:00:56]} 6. e3 {[%emt 0:00:15]} Nbd7 {[%emt 0:00:41]} 7. cxd5 {[%emt 0:01:52]} Nxd5 {[%emt 0:01:37]} 8. Nxd5 {[%emt 0:00:58] D37: Queen's Gambit Declined: 5 Bf4.} exd5 {[%emt 0:00:06]} 9. Bd3 {[%emt 0:01:07]} c5 {[%emt 0:02:05]} 10. O-O {[%emt 0:02:19]} c4 {[%emt 0:01:49]} 11. Bc2 {[%emt 0:12:02]} b5 {[%emt 0:04:05] The main line 11...b5 scores better than 11...Nf6.} 12. b3 {[%emt 0:07:10]} a5 {[%emt 0:06:22]} 13. bxc4 {[%emt 0:13:25]} dxc4 $146 {[%emt 0:06:52]} ({Predecessor:} 13... bxc4 14. h3 Ra6 15. Qe2 Rb6 16. Rfb1 Rb4 17. a3 Rxb1+ 18. Rxb1 Bxa3 19. Rb5 Nf6 {½-½ Ding,L (2811)-Grischuk,A (2745) Speed Chess Chess.com INT blitz 2022 (1.11)}) 14. Qb1 {[%emt 0:05:39]} b4 {[%emt 0:03:02]} 15. Bxh7+ {[%emt 0:01:38]} Kh8 {[%emt 0:00:08]} 16. Be4 {[%emt 0:01:06]} Ra7 {[%emt 0:01:14]} 17. Ne5 {[%emt 0:04:50]} ({White should play} 17. Qc2 $16) 17... Nxe5 {[%emt 0:06:22]} 18. Bxe5 {[%emt 0:00:35]} Bb7 {[%emt 0:01:13]} 19. Bxb7 {[%emt 0:10:32]} Rxb7 {[%emt 0:00:09]} 20. Qe4 {[%emt 0:00:23]} Rb5 $2 {[%emt 0:09:23]} (20... Qd7 $11 {and Black is okay.}) 21. Qc6 $1 {[%emt 0:03:25]} Rxe5 {[%emt 0:02:03]} 22. dxe5 {[%emt 0:00:21]} Qc8 {[%emt 0:00:30]} 23. Qb5 {[%emt 0:02:09]} Qc5 {[%emt 0:00:54]} 24. Qxc5 {[%emt 0:07:57]} Bxc5 {[%emt 0:00:13]} 25. Rfd1 {[%emt 0:02:54]} Rc8 {[%emt 0:02:51]} 26. Rac1 {[%emt 0:05:47]} Bf8 {[%emt 0:09:06]} 27. Rd4 {[%emt 0:04:00]} c3 {[%emt 0:00:54]} 28. Kf1 {[%emt 0:02:11]} (28. Rd7 $5 a4 $8 29. Rb7 $11 (29. Rxf7 $2 {loses.} b3 $19)) 28... a4 $1 {[%emt 0:01:46]} 29. Rd3 $1 {[%emt 0:00:54]} Rb8 {[%emt 0:02:26]} 30. Ke2 {[%emt 0:01:54]} Be7 {[%emt 0:05:34]} 31. f4 {[%emt 0:03:07]} Bd8 {[%emt 0:02:30]} 32. Rd5 {[%emt 0:01:26]} b3 {[%emt 0:01:46]} 33. axb3 {[%emt 0:00:21]} axb3 {[%emt 0:00:40]} 34. Rxc3 {[%emt 0:00:33]} b2 {[%emt 0:01:01]} 35. Rxd8+ {[%emt 0:00:21]} Rxd8 {[%emt 0:00:08]} 36. Rb3 {[%emt 0:00:03]} Kh7 {[%emt 0:01:26]} 37. Rxb2 {[%emt 0:00:06]} Kg6 {[%emt 0:00:53]} 38. Kf3 {[%emt 0:00:10]} Rd1 {[%emt 0:01:14]} 39. g4 {[%emt 0:00:44]} Rf1+ {[%emt 0:00:42]} 40. Ke4 {[%emt 0:01:30]} Rg1 $18 {[%emt 0:00:32]} 41. Rb6+ {[%emt 0:30:26]} Kh7 {[%emt 0:30:12]} 42. Kf5 {[%emt 0:02:27]} Rh1 {[%emt 0:02:05]} 43. e6 {[%emt 0:02:26]} fxe6+ {[%emt 0:00:34]} 44. Rxe6 {[%emt 0:00:12]} Rxh2 {[%emt 0:00:18]} 45. e4 {[%emt 0:00:09]} Kg8 {[%emt 0:00:56]} 46. e5 {[%emt 0:00:43]} Kf7 {[%emt 0:00:31]} 47. Ra6 {[%emt 0:00:08]} Rh4 {[%emt 0:00:51]} 48. Ra7+ {[%emt 0:00:35]} Kf8 {[%emt 0:00:23]} 49. e6 {[%emt 0:00:56]} Rh7 {[%emt 0:01:57]} 50. Rf7+ {[%emt 0:01:41]} Ke8 {[%emt 0:01:25]} 51. g5 {[%emt 0:00:35]} Kd8 {[%emt 0:02:01]} 52. Kg6 {[%emt 0:00:00]} Rh4 {[%emt 0:00:00]} 53. Kxg7 {[%emt 0:00:00]} Ke8 {[%emt 0:00:00]} 54. f5 {[%emt 0:00:00]} Rd4 {[%emt 0:00:00]} 55. f6 {[%emt 0:00:00]} Rd7 {[%emt 0:00:00]} 56. exd7+ {[%emt 0:00:00]} 1-0

[Event "DFMMLV 2024"]
[Site "Braunfels"]
[Date "2024.06.01"]
[Round "4.11"]
[White "Novikova, Margarita"]
[Black "Steinbacher, Claudia"]
[Result "1/2-1/2"]
[ECO "A47"]
[WhiteElo "1999"]
[BlackElo "2027"]
[Annotator "NA RC"]
[PlyCount "85"]
[EventDate "2024.05.30"]
[EventType "team-tourn"]
[EventCountry "GER"]
[SourceTitle "playchess.com"]
[Source "ChessBase"]
[SourceQuality "1"]
[TimeControl "40/5400+30:1800+30"]

1. d4 {[%emt 0:01:13]} Nf6 {[%emt 0:00:16]} 2. Bf4 {[%emt 0:00:06]} b6 {[%emt 0:02:09]} 3. Nf3 {[%emt 0:07:46]} Bb7 {[%emt 0:00:43]} 4. e3 {[%emt 0:00:46]} e6 {[%emt 0:02:53]} 5. Bd3 {[%emt 0:03:06]} Be7 {[%emt 0:03:02]} 6. h3 {[%emt 0:01:04]} d6 {[%emt 0:04:17] A47: 1 d4 Nf6 2 Nf3 b6: Torre, London and Colle Systems.} 7. O-O {[%emt 0:01:40]} O-O {[%emt 0:00:03]} 8. Nbd2 {[%emt 0:00:34]} Nd5 {[%emt 0:02:02]} 9. Bh2 {[%emt 0:02:41]} f5 {[%emt 0:00:15]} 10. a3 {[%emt 0:01:00]} Nf6 {[%emt 0:07:52]} 11. c4 {[%emt 0:14:25]} Ne4 {[%emt 0:01:16]} 12. Qc2 {[%emt 0:00:31]} Nxd2 {[%emt 0:00:38]} 13. Nxd2 {[%emt 0:00:12]} g6 {[%emt 0:01:57]} 14. b4 {[%emt 0:05:32]} Nd7 {[%emt 0:07:44]} 15. Qb3 {[%emt 0:21:25]} Nf6 {[%emt 0:18:50]} 16. b5 {[%emt 0:09:00]} Re8 {[%emt 0:06:14]} 17. a4 {[%emt 0:02:51]} c5 {[%emt 0:03:52]} 18. dxc5 {[%emt 0:03:04]} dxc5 {[%emt 0:01:57]} 19. Rfd1 {[%emt 0:00:24]} Bd6 {[%emt 0:00:46]} 20. Bxd6 {[%emt 0:00:41]} Qxd6 {[%emt 0:00:02]} 21. a5 {[%emt 0:01:49]} Rad8 {[%emt 0:01:04]} 22. Be2 {[%emt 0:00:56]} Qe5 {[%emt 0:13:18]} 23. Nf3 {[%emt 0:05:15]} Rxd1+ {[%emt 0:00:08]} 24. Rxd1 {[%emt 0:01:06]} Qc7 {[%emt 0:00:11]} 25. axb6 {[%emt 0:01:07]} axb6 {[%emt 0:00:02]} 26. Qd3 $1 {[%emt 0:01:34]} Ne4 {[%emt 0:02:40]} (26... Kf7 $14) 27. Ne1 {[%emt 0:01:39]} Kf7 {[%emt 0:02:25]} 28. Bf3 {[%emt 0:01:09]} Ke7 {[%emt 0:03:21]} 29. Bxe4 {[%emt 0:02:29]} Bxe4 {[%emt 0:00:02]} 30. Qc3 {[%emt 0:00:15]} Kf7 {[%emt 0:03:18]} 31. f3 {[%emt 0:00:12]} Bb7 {[%emt 0:00:05]} 32. Qd2 {[%emt 0:01:10]} Ke7 $16 {[%emt 0:02:00]} (32... e5 $11 {keeps the balance.}) 33. Qb2 {[%emt 0:00:12]} Kf7 {[%emt 0:00:07]} 34. Nd3 {[%emt 0:01:11]} e5 {[%emt 0:00:42]} 35. f4 {[%emt 0:00:48]} exf4 {[%emt 0:00:35]} 36. exf4 {[%emt 0:00:01]} Rd8 {[%emt 0:03:22]} 37. Ne5+ {[%emt 0:00:31]} Ke6 {[%emt 0:00:17]} 38. Re1 {[%emt 0:00:41]} Be4 {[%emt 0:00:05]} 39. Nc6 {[%emt 0:00:44]} Ra8 {[%emt 0:05:08]} 40. Qd2 {[%emt 0:05:16]} Qd6 {[%emt 0:01:52]} 41. Qf2 {[%emt 0:13:32]} Kf7 {[%emt 0:03:33]} 42. Ne5+ {[%emt 0:01:59]} Kg8 {[%emt 0:00:07]} 43. Re2 {[%emt 0:07:49]} 1/2-1/2

[Event "DFMMLV 2024"]
[Site "Braunfels"]
[Date "2024.06.01"]
[Round "4.12"]
[White "Peglau, Mirjam"]
[Black "Timofeeva, Galina"]
[Result "0-1"]
[ECO "A59"]
[WhiteElo "1948"]
[BlackElo "1981"]
[Annotator "NA RC"]
[PlyCount "82"]
[EventDate "2024.05.30"]
[EventType "team-tourn"]
[EventCountry "GER"]
[SourceTitle "playchess.com"]
[Source "ChessBase"]
[SourceQuality "1"]
[TimeControl "40/5400+30:1800+30"]

1. d4 {[%emt 0:00:01]} Nf6 {[%emt 0:00:10]} 2. c4 {[%emt 0:00:05]} c5 {[%emt 0:00:06]} 3. d5 {[%emt 0:00:06]} b5 {[%emt 0:00:06]} 4. cxb5 {[%emt 0:00:04]} a6 {[%emt 0:00:02]} 5. bxa6 {[%emt 0:00:12]} Bxa6 {[%emt 0:00:12]} (5... e6 $1 $14) 6. Nc3 {[%emt 0:00:33]} g6 {[%emt 0:01:07]} 7. e4 {[%emt 0:03:19]} Bxf1 {[%emt 0:00:11]} 8. Kxf1 {[%emt 0:00:02]} d6 {[%emt 0:00:11]} 9. g3 {[%emt 0:00:51]} Bg7 {[%emt 0:00:06]} 10. Kg2 {[%emt 0:01:11]} O-O {[%emt 0:00:07]} 11. Nge2 {[%emt 0:01:23]} Nbd7 {[%emt 0:00:57]} 12. Re1 {[%emt 0:03:33] A59: Benko/Volga Gambit: White castles by hand.} Qa5 {[%emt 0:09:13]} 13. Qc2 {[%emt 0:06:28]} Rfb8 {[%emt 0:11:18]} 14. Bd2 {[%emt 0:04:22]} Ne5 {[%emt 0:02:45]} 15. b3 {[%emt 0:05:00]} Qa6 {[%emt 0:02:27]} 16. Nc1 {[%emt 0:06:26]} (16. Red1 $14) 16... c4 {[%emt 0:02:33]} 17. Rb1 {[%emt 0:02:35]} Ne8 {[%emt 0:24:39]} 18. b4 {[%emt 0:13:51]} Nd3 {[%emt 0:17:51]} 19. Nxd3 {[%emt 0:00:40]} cxd3 {[%emt 0:00:03]} 20. Qb3 {[%emt 0:02:40]} Bxc3 {[%emt 0:03:55]} 21. Bxc3 {[%emt 0:06:58]} Qxa2 {[%emt 0:01:05]} 22. Qxa2 {[%emt 0:01:06]} Rxa2 {[%emt 0:00:02]} 23. Red1 {[%emt 0:10:50]} Ra3 {[%emt 0:04:24]} 24. Rxd3 {[%emt 0:01:17]} Nc7 {[%emt 0:00:55]} 25. Rf3 {[%emt 0:03:24]} f5 {[%emt 0:02:37]} 26. exf5 {[%emt 0:04:39]} Nxd5 {[%emt 0:00:03]} 27. Bd2 {[%emt 0:00:50]} Rxf3 {[%emt 0:00:46]} 28. Kxf3 {[%emt 0:00:02]} gxf5 {[%emt 0:00:11]} 29. b5 {[%emt 0:02:12]} Nb6 {[%emt 0:02:41]} 30. Kf4 {[%emt 0:11:56]} Nc4 $11 {[%emt 0:01:21]} 31. Bc1 {[%emt 0:03:38]} e6 {[%emt 0:00:11]} 32. Kg5 {[%emt 0:01:02]} Kg7 {[%emt 0:03:33]} 33. Rb4 {[%emt 0:00:54]} d5 {[%emt 0:00:18]} 34. Bb2+ {[%emt 0:01:04]} Kf7 {[%emt 0:00:53]} 35. Bd4 {[%emt 0:01:12]} e5 {[%emt 0:00:51]} 36. Ba7 {[%emt 0:00:33]} Rb7 {[%emt 0:00:33]} 37. b6 {[%emt 0:00:11]} Ke6 {[%emt 0:02:36]} 38. Rb3 {[%emt 0:02:35]} d4 {[%emt 0:01:10]} 39. Rb4 {[%emt 0:01:05]} d3 {[%emt 0:01:03]} 40. Rxc4 {[%emt 0:00:56]} d2 {[%emt 0:00:08]} 41. Rc7 {[%emt 0:02:29]} Rxc7 {[%emt 0:00:26]} 0-1

[Event "DFMMLV 2024"]
[Site "Braunfels"]
[Date "2024.06.01"]
[Round "4.13"]
[White "Valkova, Angelika"]
[Black "Just, Anita"]
[Result "1-0"]
[ECO "A85"]
[WhiteElo "2004"]
[BlackElo "1884"]
[Annotator "NA RC"]
[PlyCount "71"]
[EventDate "2024.05.30"]
[EventType "team-tourn"]
[EventCountry "GER"]
[SourceTitle "playchess.com"]
[Source "ChessBase"]
[SourceQuality "1"]
[TimeControl "40/5400+30:1800+30"]

1. d4 {[%emt 0:35:33]} e6 {[%emt 0:48:18]} 2. c4 {[%emt 0:00:30]} f5 {[%emt 0:00:30]} 3. a3 {[%emt 0:00:30]} Nf6 {[%emt 0:00:30]} 4. Nc3 {[%emt 0:00:30]} Be7 {[%emt 0:00:30]} 5. Bf4 {[%emt 0:00:30]} d6 {[%emt 0:00:30]} 6. e3 {[%emt 0:00:30] A85: Dutch Defence: 2 c4 Nf6 3 Nc3.} O-O {[%emt 0:00:30]} 7. Be2 {[%emt 0:00:30]} Nbd7 {[%emt 0:00:30]} 8. Nf3 {[%emt 0:00:30]} Qe8 {[%emt 0:00:30]} 9. O-O {[%emt 0:00:30]} Bd8 {[%emt 0:00:30]} 10. h3 {[%emt 0:00:30]} e5 {[%emt 0:00:30]} 11. Bh2 {[%emt 0:00:30]} e4 {[%emt 0:00:30]} 12. Nd2 {[%emt 0:00:30]} g5 {[%emt 0:00:30]} 13. Qc2 {[%emt 0:00:30]} Qg6 {[%emt 0:00:30]} (13... Rf7 $14) 14. f3 {[%emt 0:00:30]} Re8 {[%emt 0:00:30]} (14... exf3 $142 15. Nxf3 (15. Bxf3 Kh8 $14) (15. Rxf3 g4 $11) 15... Ne4) 15. Rad1 {[%emt 0:00:30]} (15. Rae1 {[%emt 0:06:15]}) ({White should play} 15. fxe4 Nxe4 16. Ndxe4 fxe4 17. c5) 15... Nf8 {[%emt 0:00:30]} 16. fxe4 {[%emt 0:00:30]} fxe4 {[%emt 0:00:30]} 17. Ncxe4 {[%emt 0:00:30]} Nxe4 {[%emt 0:00:30] [#]} 18. Rde1 $4 {[%emt 0:00:10]} (18. Bd3 $1 $18 {is the narrow road to win.}) 18... Bf5 $4 {[%emt 0:07:58]} (18... Nxd2 $19 {avoids the disaster.} 19. Qxd2 g4) 19. g4 {[%emt 0:00:34]} Nc3 {[%emt 0:01:01]} (19... Bd7 {was necessary.}) 20. Bd3 {[%emt 0:03:45]} Qh6 {[%emt 0:00:30]} 21. Bxf5 {[%emt 0:00:30]} Qg6 {[%emt 0:01:47]} 22. Rf3 {[%emt 0:00:30]} Qh6 {[%emt 0:00:30]} 23. Nb1 {[%emt 0:05:29]} Na2 {[%emt 0:00:30]} 24. Nc3 Nxc3 {[%emt 0:10:36]} 25. Ra1 {[%emt 0:13:08]} c5 {[%emt 0:04:50]} 26. dxc5 {[%emt 0:00:30]} Na2 {[%emt 0:00:32]} 27. Rxa2 dxc5 {[%emt 0:00:50]} 28. Be4 {[%emt 0:15:58]} Ba5 {[%emt 0:02:39]} 29. Bd5+ {[%emt 0:00:59]} Kh8 {[%emt 0:05:32]} 30. Qf5 {[%emt 0:02:52]} (30. b4 $142 Ng6 31. bxa5) 30... Re6 $18 {[%emt 0:05:01]} (30... Qg7 $142 31. Bf7 Ng6) 31. Ra1 {[%emt 0:00:57]} Qg6 {[%emt 0:02:47]} 32. Raf1 {[%emt 0:01:34]} Kg7 {[%emt 0:01:40]} 33. Qe5+ {[%emt 0:02:24]} Kg8 {[%emt 0:01:38]} 34. Rf6 {[%emt 0:00:47]} Rd8 {[%emt 0:00:36]} 35. Rxe6 {[%emt 0:01:23]} Rxd5 {[%emt 0:00:28]} 36. cxd5 {[%emt 0:00:30]} 1-0

[Event "DFMMLV 2024"]
[Site "Braunfels"]
[Date "2024.06.01"]
[Round "4.14"]
[White "Kosovska, Olena"]
[Black "Gheng, Simona"]
[Result "0-1"]
[ECO "B23"]
[WhiteElo "1935"]
[BlackElo "1982"]
[Annotator "NA RC"]
[PlyCount "82"]
[EventDate "2024.05.30"]
[EventType "team-tourn"]
[EventCountry "GER"]
[SourceTitle "playchess.com"]
[Source "ChessBase"]
[SourceQuality "1"]
[TimeControl "40/5400+30:1800+30"]

1. e4 {[%emt 0:00:04]} c5 {[%emt 0:00:08]} 2. Nc3 {[%emt 0:00:07]} d6 {[%emt 0:00:48]} 3. f4 {[%emt 0:00:15]} a6 {[%emt 0:01:18]} 4. Nf3 {[%emt 0:01:46]} b5 {[%emt 0:01:17]} 5. d4 {[%emt 0:05:42]} cxd4 {[%emt 0:03:28]} 6. Nxd4 {[%emt 0:00:40] B23: Closed Sicilian: Lines without g3.} Bb7 {[%emt 0:00:12]} 7. Bd3 {[%emt 0:04:32]} Nf6 {[%emt 0:03:01]} 8. a3 {[%emt 0:02:02]} Nbd7 {[%emt 0:03:19]} 9. Be3 {[%emt 0:07:21]} e5 {[%emt 0:04:16]} 10. Nf5 {[%emt 0:02:08]} g6 {[%emt 0:06:25]} 11. Ng3 {[%emt 0:01:53]} h5 {[%emt 0:00:28]} 12. h3 {[%emt 0:08:48]} Bh6 {[%emt 0:10:37]} 13. Qd2 {[%emt 0:09:23]} h4 {[%emt 0:04:11]} 14. Nge2 {[%emt 0:02:42]} Nc5 {[%emt 0:06:10]} 15. fxe5 {[%emt 0:15:18]} (15. O-O $14 {was preferrable.}) 15... Nxd3+ {[%emt 0:01:59]} 16. cxd3 {[%emt 0:00:41]} Bxe3 {[%emt 0:00:20]} 17. Qxe3 {[%emt 0:00:08]} dxe5 {[%emt 0:00:24]} 18. O-O {[%emt 0:01:37]} Qe7 {[%emt 0:03:24]} (18... O-O $11) 19. Rf3 {[%emt 0:09:07]} Nd7 {[%emt 0:06:19]} 20. Kh1 {[%emt 0:08:21]} (20. Raf1 $14 {should be considered.} f5 21. exf5 Bxf3 22. Qxf3) 20... Rd8 {[%emt 0:03:19]} 21. Raf1 {[%emt 0:04:07]} f5 {[%emt 0:01:27]} 22. R3f2 {[%emt 0:06:52]} (22. exf5 $1 $14 Bxf3 23. Rxf3) 22... f4 {[%emt 0:01:36]} 23. Qa7 {[%emt 0:00:37]} Nc5 {[%emt 0:05:35] [#]} 24. Nxf4 $1 {[%emt 0:03:31]} exf4 {[%emt 0:04:33]} 25. Rxf4 {[%emt 0:00:09]} Bc8 {[%emt 0:02:31]} (25... Ba8 $5 26. Qb6 $8 Qd6 $11 (26... Rxd3 $2 {is the wrong capture.} 27. Nd5 $18)) 26. Qb6 {[%emt 0:03:43]} Qd6 $11 {[%emt 0:00:36]} (26... Nxd3 27. Qxg6+ (27. Qc6+ Rd7 $18) 27... Kd7 28. Rf7 $18) 27. Qa7 {[%emt 0:00:41]} Qe7 {[%emt 0:08:11]} 28. Qxe7+ {[%emt 0:01:13]} Kxe7 {[%emt 0:00:06]} 29. Nd5+ {[%emt 0:00:05]} Rxd5 {[%emt 0:00:36]} 30. exd5 {[%emt 0:00:03]} Bf5 {[%emt 0:00:13]} 31. d4 {[%emt 0:00:20]} Nd3 {[%emt 0:00:42]} 32. R4f3 {[%emt 0:00:26]} Kd6 {[%emt 0:00:51]} 33. b3 {[%emt 0:01:35]} Kxd5 {[%emt 0:00:16]} 34. Re3 {[%emt 0:00:36]} Rc8 {[%emt 0:01:14]} 35. Rff3 {[%emt 0:00:46]} Kxd4 {[%emt 0:00:38]} 36. Rxd3+ {[%emt 0:00:24]} Bxd3 {[%emt 0:00:15]} 37. Rf4+ {[%emt 0:00:02]} Kc3 {[%emt 0:00:28]} 38. a4 {[%emt 0:00:45]} Kxb3 {[%emt 0:00:22]} 39. axb5 {[%emt 0:00:04]} axb5 {[%emt 0:00:07]} 40. Rxh4 {[%emt 0:00:05]} b4 {[%emt 0:00:16]} 41. Rf4 {[%emt 0:30:27]} Kc3 {[%emt 0:30:17]} 0-1

[Event "DFMMLV 2024"]
[Site "Braunfels"]
[Date "2024.06.01"]
[Round "4.15"]
[White "Heil, Marina"]
[Black "Lowke, Kathrin"]
[Result "0-1"]
[ECO "A45"]
[WhiteElo "1900"]
[BlackElo "1893"]
[Annotator "NA RC"]
[PlyCount "62"]
[EventDate "2024.05.30"]
[EventType "team-tourn"]
[EventCountry "GER"]
[SourceTitle "playchess.com"]
[Source "ChessBase"]
[SourceQuality "1"]
[TimeControl "40/5400+30:1800+30"]

1. d4 {[%emt 0:00:04]} Nf6 {[%emt 0:00:11]} 2. Bg5 {[%emt 0:00:06]} g6 {[%emt 0:01:03]} 3. Bxf6 {[%emt 0:00:06]} exf6 {[%emt 0:00:06]} 4. e3 {[%emt 0:00:14]} Bg7 {[%emt 0:01:52]} 5. c4 {[%emt 0:00:33]} d6 {[%emt 0:00:24]} 6. g3 {[%emt 0:00:58]} O-O {[%emt 0:00:20]} 7. Bg2 {[%emt 0:00:05]} Nd7 {[%emt 0:01:01]} 8. Ne2 {[%emt 0:02:20]} f5 {[%emt 0:02:45]} 9. O-O {[%emt 0:01:13]} Nf6 {[%emt 0:00:17]} 10. Nbc3 {[%emt 0:01:11]} Re8 {[%emt 0:04:02]} 11. Qc2 {[%emt 0:01:33] was the old line (11.Qd3).} Qe7 {[%emt 0:04:47] A45: Trompowsky Attack.} 12. a3 $146 {[%emt 0:02:13]} ({Predecessor:} 12. Nf4 Bh6 13. Nfd5 Nxd5 14. Nxd5 Qd8 15. b4 Bg7 16. b5 Bd7 17. Nb4 Qc8 18. Rab1 c6 19. a4 {1-0 Zivkovic,D (2263)-Pecinar,Z (2177) SRB-chT2 West 2014 (3.3)}) 12... c6 {[%emt 0:00:58]} 13. b4 {[%emt 0:04:05]} Ne4 {[%emt 0:02:22]} 14. Rab1 {[%emt 0:02:47]} Bd7 {[%emt 0:13:00]} 15. Rfd1 {[%emt 0:03:00]} Rac8 {[%emt 0:03:04]} 16. Qd3 {[%emt 0:03:00]} b6 {[%emt 0:17:38]} 17. a4 {[%emt 0:02:00]} Be6 {[%emt 0:05:12]} 18. Rbc1 {[%emt 0:35:44]} d5 {[%emt 0:01:00]} 19. cxd5 {[%emt 0:01:41]} cxd5 {[%emt 0:00:23]} 20. Nf4 {[%emt 0:00:50]} Qd7 {[%emt 0:07:54]} 21. b5 {[%emt 0:02:01]} Rc4 {[%emt 0:05:56]} 22. Bxe4 {[%emt 0:06:57]} fxe4 {[%emt 0:00:21]} 23. Qd2 {[%emt 0:01:55]} Rec8 {[%emt 0:01:53]} 24. Qb2 {[%emt 0:01:20]} Bg4 {[%emt 0:03:46]} 25. f3 {[%emt 0:10:08]} Bxf3 {[%emt 0:03:12]} 26. Rf1 $19 {[%emt 0:00:01]} Bh6 {[%emt 0:08:08]} 27. Ncxd5 {[%emt 0:01:29]} Kg7 {[%emt 0:00:36]} 28. Rxc4 {[%emt 0:03:35]} Rxc4 {[%emt 0:00:05]} 29. Nc3 {[%emt 0:01:12]} Bxf4 {[%emt 0:01:35]} 30. Rxf3 {[%emt 0:04:14]} exf3 {[%emt 0:00:38]} 31. Kf2 {[%emt 0:02:33]} Bxe3+ {[%emt 0:00:38]} 0-1

[Event "DFMMLV 2024"]
[Site "Braunfels"]
[Date "2024.06.01"]
[Round "4.16"]
[White "Peglau, Sarah"]
[Black "Wellenreich, Jenni"]
[Result "1-0"]
[ECO "D02"]
[WhiteElo "1851"]
[BlackElo "1831"]
[Annotator "NA RC"]
[PlyCount "93"]
[EventDate "2024.05.30"]
[EventType "team-tourn"]
[EventCountry "GER"]
[SourceTitle "playchess.com"]
[Source "ChessBase"]
[SourceQuality "1"]
[TimeControl "40/5400+30:1800+30"]

1. Nf3 {[%emt 0:00:06]} d5 {[%emt 0:01:37]} 2. d4 {[%emt 0:00:12]} Nf6 {[%emt 0:00:33]} 3. Bf4 {[%emt 0:00:14]} e6 {[%emt 0:00:49]} 4. e3 {[%emt 0:00:09]} c5 {[%emt 0:00:57]} 5. c3 {[%emt 0:02:46]} Bd6 {[%emt 0:03:18]} 6. dxc5 {[%emt 0:07:12]} Bxf4 {[%emt 0:02:18]} 7. Qa4+ {[%emt 1:23:21]} Nc6 {[%emt 0:04:19]} 8. Qxf4 {[%emt 0:00:00]} a5 {[%emt 0:04:23]} 9. Na3 {[%emt 0:00:00]} Nd7 {[%emt 0:10:06]} 10. Qd6 {[%emt 0:00:00]} Qe7 {[%emt 0:04:24]} 11. Nb5 {[%emt 0:00:00]} O-O {[%emt 0:03:00]} 12. Nc7 {[%emt 0:00:00]} Rb8 {[%emt 0:03:32]} 13. Qxe7 {[%emt 0:00:00]} Nxe7 {[%emt 0:00:18]} 14. b4 {[%emt 0:00:00]} b6 {[%emt 0:04:56]} 15. cxb6 {[%emt 0:00:00]} Rxb6 {[%emt 0:03:23]} 16. a3 {[%emt 0:00:00]} Nf6 {[%emt 0:10:26]} 17. Nd4 {[%emt 0:00:00]} Ne4 {[%emt 0:02:18]} 18. Rc1 {[%emt 0:00:00]} Nd6 {[%emt 0:06:08]} 19. Ncb5 {[%emt 0:06:00]} e5 {[%emt 0:07:24]} 20. Nxd6 {[%emt 0:00:00]} exd4 {[%emt 0:00:19]} 21. Nxc8 {[%emt 0:00:00]} Rxc8 {[%emt 0:01:57]} 22. bxa5 {[%emt 0:00:00]} Rb3 {[%emt 0:04:30]} 23. exd4 {[%emt 0:00:00]} Rxa3 {[%emt 0:00:28]} 24. a6 {[%emt 0:00:00]} Raxc3 {[%emt 0:01:51]} 25. Rxc3 {[%emt 0:00:00]} Rxc3 {[%emt 0:00:05]} 26. Kd2 {[%emt 0:00:00]} Ra3 {[%emt 0:04:06]} 27. Bb5 {[%emt 0:00:00]} Ra5 {[%emt 0:01:19]} 28. Rb1 {[%emt 0:00:00]} Kf8 {[%emt 0:01:31]} 29. Kc3 {[%emt 0:00:00]} Nf5 {[%emt 0:05:52]} 30. Kb4 {[%emt 0:00:57]} Ra2 {[%emt 0:00:27]} 31. Ba4 {[%emt 0:00:43]} Nxd4 {[%emt 0:02:47]} 32. Rc1 {[%emt 0:02:01]} Rb2+ {[%emt 0:01:56]} 33. Ka5 {[%emt 0:01:24]} Rb8 {[%emt 0:02:34]} 34. a7 {[%emt 0:01:02]} Ra8 {[%emt 0:00:38]} 35. Ka6 {[%emt 0:00:12]} Ne2 {[%emt 0:01:11]} 36. Re1 {[%emt 0:00:51]} Nc3 {[%emt 0:00:38]} 37. Bc6 {[%emt 0:00:07]} Rxa7+ {[%emt 0:00:31]} 38. Kxa7 {[%emt 0:00:03]} f6 {[%emt 0:00:24]} 39. Re8+ {[%emt 0:00:51]} Kf7 {[%emt 0:00:02]} 40. Kb6 {[%emt 0:00:57]} d4 {[%emt 0:00:32]} 41. Rd8 {[%emt 0:30:35]} Ne2 {[%emt 0:30:28]} 42. Bf3 {[%emt 0:00:09]} Ke7 {[%emt 0:00:31]} 43. Kc7 {[%emt 0:00:28]} Nf4 {[%emt 0:00:35]} 44. Rd7+ {[%emt 0:01:29]} Ke8 {[%emt 0:00:40]} 45. Kc6 {[%emt 0:00:00]} d3 {[%emt 0:00:00]} 46. g3 {[%emt 0:00:00]} Ng6 {[%emt 0:00:00]} 47. Bh5 {[%emt 0:00:00]} 1-0